fUSD/lending_fUSD_20250327
["ID","MTS","AMOUNT","RATE_DAILY","PERIOD"]
[356741881,1743083435929,-172.71,0.0002489,2]
[356741882,1743083435938,-151.0,0.000249,7]
[356741883,1743083435948,-151.0,0.000249,7]
[356741884,1743083435959,-151.0,0.000249,7]
[356741885,1743083435968,-151.0,0.000249,7]
[356741886,1743083435978,-151.0,0.000249,7]
[356741887,1743083435988,-151.0,0.000249,7]
[356741888,1743083435997,-151.0,0.000249,7]
[356741889,1743083436007,-151.0,0.000249,7]
[356741890,1743083436016,-151.0,0.000249,7]
[356741891,1743083436026,-155.247672,0.000249,7]
[356741892,1743083436036,-151.0,0.000249,7]
[356741893,1743083436045,-151.0,0.000249,7]
[356741894,1743083436055,-151.0,0.000249,7]
[356741895,1743083436065,-151.0,0.000249,7]
[356741896,1743083436075,-153.925623,0.000249,7]
[356741897,1743083436084,-232.039533,0.000249,7]
[356741898,1743083436094,-232.039533,0.000249,7]
[356741899,1743083436103,-539.114244,0.000249,7]
[356741900,1743083436113,-539.114244,0.000249,7]
[356741901,1743083436122,-288.390472,0.000249,7]
[356741902,1743083436132,-288.390472,0.000249,7]
[356741903,1743083436142,-155.861782,0.000249,7]
[356741904,1743083436151,-155.861782,0.000249,7]
[356741905,1743083436161,-151.0,0.000249,7]
[356741906,1743083436171,-151.0,0.000249,7]
[356741907,1743083436180,-158.033223,0.000249,7]
[356741908,1743083436190,-2126.77709,0.000249,7]
[356741909,1743083436199,-2126.77709,0.000249,7]
[356741910,1743083436210,-151.0,0.000249,7]
[356741911,1743083436219,-340.380474,0.000249,7]
[356741912,1743083436228,-340.380474,0.000249,7]
[356741913,1743083436238,-1136.191691,0.000249,7]
[356741914,1743083436248,-1136.191691,0.000249,7]
[356741915,1743083436374,-151.0,0.000249,7]
[356741916,1743083436384,-37198.6265612,0.000249,3]
[356741917,1743083436393,-151.0,0.000249,7]
[356741918,1743083436402,-151.0,0.000249,7]
[356741919,1743083436412,-151.0,0.000249,7]
[356741920,1743083436421,-205.250071,0.000249,7]
[356741921,1743083436430,-151.0,0.000249,7]
[356741922,1743083436439,-151.0,0.000249,7]
[356741923,1743083436449,-2000.0,0.00025,4]
[356741924,1743083436461,-250.0,0.00025,2]
[356741925,1743083436470,-500.27681128,0.00025206,2]
[356741926,1743083436480,-377.48,0.00025319,120]
[356741927,1743083436489,-1000.0,0.00025319,2]
[356741928,1743083436499,-3944.0,0.00025377,2]
[356741929,1743083436508,-151.0,0.00025377,2]
[356741930,1743083436518,-1015.22,0.00025684,2]
[356741931,1743083436527,-258.31164833,0.00025882,2]
[356741932,1743083436536,-2000.0,0.00026,4]
[356741933,1743083436548,-1000.0,0.00026195,2]
[356741934,1743083436558,-1422.3,0.000267,2]
[356741935,1743083436567,-158.003,0.00026732,14]
[356741936,1743083436576,-1080.077,0.00026732,14]
[356741937,1743083436585,-150.39,0.00026849,2]
[356741938,1743083436594,-570.74,0.00026849,2]
[356741939,1743083436604,-300.0,0.00027,2]
[356741940,1743083436613,-2000.0,0.00027,4]
[356741941,1743083436623,-151.0,0.00027397,7]
[356741942,1743083436634,-269.0,0.00027397,7]
[356741943,1743083436643,-1500.0,0.00027397,60]
[356741944,1743083436654,-150.0,0.00027397,5]
[356741945,1743083436664,-377.48,0.00027621,120]
[356741946,1743083436674,-1000.0,0.00027621,2]
[356741947,1743083436685,-250.0,0.00027945,5]
[356741948,1743083436695,-1015.22,0.00027948,2]
[356741949,1743083436709,-329.48842002,0.00028,60]
[356741950,1743083436720,-2000.0,0.00028,4]
[356741951,1743083436731,-3089.388,0.00028377,2]
[356741952,1743083436741,-151.0,0.00028377,2]
[356741953,1743083436751,-350.0,0.00028493,5]
[356741954,1743083436761,-12519.54,0.000286,2]
[356741955,1743083436773,-2000.0,0.00029,4]
[356741956,1743083436783,-350.0,0.00029,2]
[356741957,1743083436792,-450.0,0.00029041,5]
[356741958,1743083436802,-1979.0,0.000291,5]
[356741959,1743083436812,-293.99,0.00029191,30]
[356741960,1743083436824,-550.0,0.00029589,5]
[356741961,1743083436835,-5632.2249171,0.0003,3]
[356741962,1743083436845,-158.34095048,0.0003,20]
[356741963,1743083436855,-172.71,0.00030126,2]
[356741964,1743083436865,-500.0,0.00030136,2]
[356741965,1743083436874,-199.94313332,0.00030136,2]
[356741966,1743083436883,-178.08840394,0.00030136,2]
[356741967,1743083436894,-266.81480046,0.00030136,2]
[356741968,1743083436903,-500.0,0.00030136,2]
[356741969,1743083436912,-219.61948643,0.00030136,2]
[356741970,1743083436922,-500.0,0.00030136,2]
[356741971,1743083436931,-500.0,0.00030136,2]
[356741972,1743083436940,-500.0,0.00030136,2]
[356741973,1743083436949,-500.0,0.00030136,2]
[356741974,1743083436960,-500.0,0.00030136,2]
[356741975,1743083436970,-500.0,0.00030136,2]
[356741976,1743083436979,-500.0,0.00030136,2]
[356741977,1743083436988,-500.0,0.00030136,2]
[356741978,1743083436998,-500.0,0.00030136,2]
[356741979,1743083437007,-526.64,0.00030136,2]
[356741980,1743083437016,-1087.94,0.00030136,2]
[356741981,1743083437025,-500.0,0.00030136,2]
[356741982,1743083437034,-500.0,0.00030136,2]
[356741983,1743083437044,-500.0,0.00030136,2]
[356741984,1743083437053,-501.11893977,0.00030136,2]
[356741985,1743083437062,-500.0,0.00030136,2]
[356741986,1743083437073,-500.0,0.00030136,2]
[356741987,1743083437082,-2000.0,0.00030136,2]
[356741988,1743083437091,-500.0,0.00030136,2]
[356741989,1743083437101,-500.0,0.00030136,30]
[356741990,1743083437111,-500.0,0.00030136,30]
[356741991,1743083437121,-500.0,0.00030136,2]
[356741992,1743083437132,-500.0,0.00030136,30]
[356741993,1743083437140,-500.0,0.00030136,2]
[356741994,1743083437150,-183.15722008,0.00030136,30]
[356741995,1743083437159,-500.0,0.00030136,2]
[356741996,1743083437168,-500.0,0.00030136,2]
[356741997,1743083437177,-500.0,0.00030136,2]
[356741998,1743083437186,-500.0,0.00030136,2]
[356741999,1743083437195,-500.0,0.00030136,2]
[356742000,1743083437205,-500.0,0.00030136,2]
[356742001,1743083437214,-500.0,0.00030136,2]
[356742002,1743083437223,-500.0,0.00030136,2]
[356742003,1743083437232,-500.0,0.00030136,2]
[356742004,1743083437241,-500.0,0.00030136,2]
[356742005,1743083437251,-500.0,0.00030136,2]
[356742006,1743083437260,-500.0,0.00030136,2]
[356742007,1743083437269,-500.0,0.00030136,2]
[356742008,1743083437279,-500.0,0.00030136,2]
[356742009,1743083437288,-500.0,0.00030136,2]
[356742010,1743083437298,-500.0,0.00030136,2]
[356742012,1743083437307,-500.0,0.00030136,2]
[356742013,1743083437316,-500.0,0.00030136,2]
[356742015,1743083437325,-500.0,0.00030136,2]
[356742016,1743083437334,-516.58051458,0.00030136,2]
[356742019,1743083437343,-501.06225889,0.00030136,7]
[356742021,1743083437352,-519.26739442,0.00030137,5]
[356742022,1743083437361,-1015.22,0.00030212,2]
[356742024,1743083437370,-500.0,0.0003041,2]
[356742026,1743083437379,-500.0,0.0003041,2]
[356742028,1743083437388,-1087.94,0.0003041,2]
[356742030,1743083437397,-500.20402387,0.0003041,2]
[356742031,1743083437406,-411.08043453,0.0003041,2]
[356742032,1743083437414,-2000.0,0.0003041,2]
[356742033,1743083437423,-500.0,0.0003041,2]
[356742034,1743083437433,-583.86490084,0.000305,7]
[356742035,1743083437441,-1820.23657906,0.000306,2]
[356742036,1743083437450,-3768.85759767,0.000306,2]
[356742037,1743083437461,-500.0,0.00030684,2]
[356742038,1743083437470,-500.0,0.00030684,2]
[356742039,1743083437478,-1087.94,0.00030684,2]
[356742040,1743083437488,-2000.0,0.00030684,2]
[356742041,1743083437497,-469.33836945,0.00030684,2]
[356742042,1743083437506,-1504.79236128,0.000309,2]
[356742043,1743083437515,-500.0,0.00030958,2]
[356742044,1743083437525,-500.0,0.00030958,2]
[356742045,1743083437534,-1087.94,0.00030958,2]
[356742046,1743083437543,-2000.0,0.00030958,2]
[356742047,1743083437553,-300.0,0.00031,2]
[356742048,1743083437562,-400.0,0.00031,2]
[356742049,1743083437571,-500.0,0.00031232,2]
[356742050,1743083437580,-500.0,0.00031232,2]
[356742051,1743083437590,-1087.94,0.00031232,2]
[356742052,1743083437599,-2000.0,0.00031232,2]
[356742053,1743083437607,-258.31164833,0.00031373,2]
[356742054,1743083437618,-151.0,0.00031377,2]
[356742055,1743083437627,-500.0,0.00031506,2]
[356742056,1743083437636,-500.0,0.00031506,2]
[356742057,1743083437646,-1087.94,0.00031506,2]
[356742058,1743083437655,-2000.0,0.00031506,2]
[356742059,1743083437665,-1067.49187776,0.0003165,4]
[356742060,1743083437674,-500.0,0.0003178,2]
[356742061,1743083437684,-500.0,0.0003178,2]
[356742062,1743083437694,-1087.94,0.0003178,2]
[356742063,1743083437704,-2000.0,0.0003178,2]
[356742064,1743083437713,-1000.0,0.00031851,2]
[356742065,1743083437722,-150.0,0.00031939,2]
[356742066,1743083437732,-150.0,0.00031971,2]
[356742067,1743083437741,-150.0,0.00031984,2]
[356742069,1743083437750,-150.0,0.00031991,2]
[356742071,1743083437760,-150.0,0.00031992,2]
[356742073,1743083437769,-849.0,0.00032,30]
[356742074,1743083437779,-500.0,0.00032054,2]
[356742075,1743083437788,-624.85022803,0.00032054,2]
[356742076,1743083437798,-1087.94,0.00032054,2]
[356742077,1743083437809,-2000.0,0.00032054,2]
[356742078,1743083437818,-150.0,0.00032079,2]
[356742079,1743083437831,-150.0,0.00032108,2]
[356742080,1743083437840,-150.0,0.00032111,2]
[356742081,1743083437850,-150.0,0.00032137,2]
[356742083,1743083437861,-150.0,0.00032217,2]
[356742085,1743083437870,-150.0,0.00032226,2]
[356742087,1743083437879,-150.0,0.00032262,2]
[356742089,1743083437888,-150.0,0.00032279,2]
[356742091,1743083437897,-28167.44236427,0.0003228,2]
[356742093,1743083437910,-253.59912675,0.0003228,2]
[356742095,1743083437919,-150.0,0.00032301,2]
[356742097,1743083437929,-500.0,0.00032328,2]
[356742099,1743083437938,-1087.94,0.00032328,2]
[356742101,1743083437947,-2000.0,0.00032328,2]
[356742103,1743083437957,-150.0,0.00032333,2]
[356742105,1743083437966,-150.0,0.00032345,2]
[356742107,1743083437975,-385.27537879,0.0003238,2]
[356742109,1743083437984,-300.0,0.00032406,2]
[356742111,1743083437993,-150.0,0.00032427,2]
[356742113,1743083438003,-150.0,0.0003246,2]
[356742115,1743083438012,-1015.22,0.00032476,2]
[356742117,1743083438022,-150.0,0.0003249,2]
[356742119,1743083438031,-150.0,0.00032538,2]
[356742121,1743083438039,-150.0,0.00032552,2]
[356742123,1743083438048,-150.0,0.0003257,2]
[356742125,1743083438058,-154.0,0.0003258,30]
[356742127,1743083438067,-150.0,0.00032581,30]
[356742129,1743083438076,-153.046983,0.00032581,7]
[356742131,1743083438085,-151.0,0.00032581,7]
[356742133,1743083438094,-151.0,0.00032581,7]
[356742135,1743083438103,-151.0,0.00032581,7]
[356742137,1743083438112,-151.0,0.00032581,7]
[356742139,1743083438122,-151.0,0.00032584,7]
[356742141,1743083438131,-151.0,0.00032584,7]
[356742143,1743083438140,-151.0,0.00032584,7]
[356742145,1743083438149,-1422.3,0.000326,2]
[356742147,1743083438158,-404.0,0.000326,30]
[356742148,1743083438168,-150.0,0.000326,2]
[356742150,1743083438176,-151.0,0.000326,7]
[356742152,1743083438185,-151.0,0.000326,7]
[356742154,1743083438194,-205.885837,0.000326,7]
[356742156,1743083438203,-151.0,0.000326,7]
[356742158,1743083438212,-151.0,0.000326,7]
[356742160,1743083438221,-151.0,0.00032601,7]
[356742162,1743083438230,-151.0,0.00032601,7]
[356742164,1743083438240,-151.0,0.00032601,7]
[356742166,1743083438249,-151.0,0.00032601,7]
[356742168,1743083438258,-151.0,0.00032601,7]
[356742170,1743083438266,-151.0,0.00032601,7]
[356742172,1743083438275,-151.0,0.00032601,7]
[356742174,1743083438284,-151.0,0.00032601,7]
[356742176,1743083438293,-232.039533,0.00032601,7]
[356742178,1743083438302,-232.039533,0.00032601,7]
[356742179,1743083438311,-539.114244,0.00032601,7]
[356742180,1743083438320,-539.114244,0.00032601,7]
[356742181,1743083438329,-288.390472,0.00032601,7]
[356742182,1743083438339,-288.390472,0.00032601,7]
[356742183,1743083438347,-155.861782,0.00032601,7]
[356742184,1743083438356,-155.861782,0.00032601,7]
[356742185,1743083438365,-151.0,0.00032601,7]
[356742186,1743083438374,-208.774171,0.00032601,7]
[356742187,1743083438383,-151.0,0.00032602,7]
[356742188,1743083438391,-500.0,0.00032602,2]
[356742189,1743083438401,-1087.94,0.00032602,2]
[356742190,1743083438409,-2000.0,0.00032602,2]
[356742191,1743083438418,-182.45115318,0.0003261,2]
[356742192,1743083438427,-151.0,0.0003262,7]
[356742193,1743083438437,-242.181007,0.0003262,7]
[356742194,1743083438445,-242.181007,0.0003262,7]
[356742195,1743083438456,-152.817189,0.0003262,7]
[356742196,1743083438465,-151.0,0.0003262,7]
[356742197,1743083438474,-151.0,0.0003262,7]
[356742198,1743083438482,-152.762342,0.0003262,7]
[356742199,1743083438491,-151.0,0.0003262,7]
[356742200,1743083438500,-151.0,0.0003262,7]
[356742201,1743083438508,-151.0,0.0003262,7]
[356742202,1743083438517,-151.0,0.0003262,7]
[356742203,1743083438526,-297.1421,0.0003262,7]
[356742204,1743083438534,-162.132276,0.0003262,7]
[356742205,1743083438543,-198.623279,0.0003262,7]
[356742206,1743083438551,-198.623279,0.0003262,7]
[356742207,1743083438560,-570.74,0.00032646,2]
[356742208,1743083438569,-151.0,0.0003265,7]
[356742209,1743083438579,-151.0,0.0003265,7]
[356742210,1743083438588,-256.744407,0.0003265,7]
[356742211,1743083438597,-2126.77709,0.0003265,7]
[356742212,1743083438605,-2126.77709,0.0003265,7]
[356742213,1743083438614,-151.0,0.0003265,7]
[356742214,1743083438623,-340.380474,0.0003265,7]
[356742215,1743083438631,-340.380474,0.0003265,7]
[356742216,1743083438640,-1136.191691,0.0003265,7]
[356742217,1743083438649,-1136.191691,0.0003265,7]
[356742218,1743083438659,-151.0,0.0003265,7]
[356742219,1743083438668,-151.0,0.0003265,7]
[356742220,1743083438677,-151.0,0.0003265,7]
[356742221,1743083438686,-151.0,0.0003265,7]
[356742222,1743083438695,-151.0,0.0003265,7]
[356742223,1743083438706,-151.0,0.0003265,7]
[356742224,1743083438714,-1274.2109333,0.00032651,4]
[356742225,1743083438723,-6725.12275573,0.00032651,4]
[356742226,1743083438733,-5161.10579083,0.00032651,4]
[356742227,1743083438742,-496.67532512,0.00032651,2]
[356742228,1743083438751,-500.0,0.00032651,5]
[356742229,1743083438760,-500.0,0.00032651,5]
[356742230,1743083438770,-500.0,0.00032651,5]
[356742231,1743083438780,-500.0,0.00032651,5]
[356742232,1743083438789,-500.0,0.00032651,5]
[356742233,1743083438798,-643.60249006,0.00032651,5]
[356742234,1743083438807,-500.0,0.00032651,2]
[356742235,1743083438816,-500.0,0.00032651,2]
[356742236,1743083438828,-597.77494745,0.00032651,2]
[356742237,1743083438838,-729.77,0.00032651,2]
[356742238,1743083438847,-729.77,0.00032651,2]
[356742239,1743083438856,-729.77,0.00032651,2]
[356742240,1743083438866,-729.77,0.00032651,2]
[356742241,1743083438874,-729.77,0.00032651,2]
[356742242,1743083438883,-729.77,0.00032651,2]
[356742243,1743083438894,-729.77,0.00032651,2]
[356742244,1743083438905,-729.77,0.00032651,2]
[356742245,1743083438915,-729.77,0.00032651,2]
[356742246,1743083438924,-729.77,0.00032651,2]
[356742247,1743083438932,-729.77,0.00032651,2]
[356742248,1743083438941,-729.77,0.00032651,2]
[356742249,1743083438950,-729.77,0.00032651,2]
[356742250,1743083438959,-729.77,0.00032651,2]
[356742251,1743083438968,-729.77,0.00032651,2]
[356742252,1743083438977,-729.77,0.00032651,2]
[356742253,1743083438985,-729.77,0.00032651,2]
[356742254,1743083438994,-729.77,0.00032651,2]
[356742255,1743083439003,-729.77,0.00032651,2]
[356742256,1743083439011,-729.77,0.00032651,2]
[356742257,1743083439020,-729.77,0.00032651,2]
[356742258,1743083439029,-729.77,0.00032651,2]
[356742259,1743083439038,-729.77,0.00032651,2]
[356742260,1743083439047,-729.99068253,0.00032651,2]
[356742261,1743083439056,-500.0,0.00032651,7]
[356742262,1743083439065,-567.29731681,0.00032651,7]
[356742263,1743083439074,-500.0,0.00032651,10]
[356742264,1743083439083,-500.0,0.00032651,10]
[356742265,1743083439092,-500.0,0.00032651,10]
[356742266,1743083439101,-500.0,0.00032651,10]
[356742267,1743083439110,-500.0,0.00032651,10]
[356742268,1743083439119,-500.0,0.00032651,10]
[356742269,1743083439128,-500.0,0.00032651,10]
[356742270,1743083439137,-500.0,0.00032651,10]
[356742271,1743083439146,-500.0,0.00032651,10]
[356742272,1743083439155,-500.0,0.00032651,10]
[356742273,1743083439164,-500.0,0.00032651,10]
[356742274,1743083439173,-500.0,0.00032651,10]
[356742275,1743083439182,-500.0,0.00032651,10]
[356742276,1743083439191,-500.0,0.00032651,10]
[356742277,1743083439199,-500.0,0.00032651,10]
[356742278,1743083439317,-483.89423811,0.00032651,10]
[356742279,1743083439327,-261.62738172,0.00032651,7]
[356742280,1743083439336,-500.0,0.00032651,7]
[356742281,1743083439345,-525.79421235,0.00032651,7]
[356742282,1743083439354,-535.91226231,0.00032651,15]
[356742283,1743083439363,-500.0,0.00032651,2]
[356742284,1743083439374,-500.0,0.00032651,2]
[356742285,1743083439384,-157.45153327,0.00032651,2]
[356742286,1743083439393,-500.0,0.00032651,2]
[356742287,1743083439403,-500.0,0.00032651,2]
[356742288,1743083439412,-500.0,0.00032651,2]
[356742290,1743083439422,-500.0,0.00032651,2]
[356742292,1743083439431,-500.0,0.00032651,2]
[356742293,1743083439440,-500.0,0.00032651,2]
[356742294,1743083439450,-607.13323172,0.00032651,2]
[356742295,1743083439461,-500.0,0.00032651,15]
[356742296,1743083439471,-576.96624376,0.00032651,15]
[356742297,1743083439481,-5778.16,0.00032651,2]
[356742298,1743083439490,-5778.16,0.00032651,2]
[356742299,1743083439499,-5778.16,0.00032651,2]
[356742300,1743083439508,-5778.16,0.00032651,2]
[356742301,1743083439517,-5778.16,0.00032651,2]
[356742302,1743083439526,-5778.16,0.00032651,2]
[356742304,1743083439535,-5778.16,0.00032651,2]
[356742305,1743083439544,-5778.16,0.00032651,2]
[356742306,1743083439553,-5778.16,0.00032651,2]
[356742307,1743083439562,-5778.16,0.00032651,2]
[356742308,1743083439572,-5778.16,0.00032651,2]
[356742309,1743083439581,-5778.16,0.00032651,2]
[356742310,1743083439590,-5778.16,0.00032651,2]
[356742312,1743083439600,-5778.16,0.00032651,2]
[356742313,1743083439609,-5778.16,0.00032651,2]
[356742314,1743083439619,-5778.16,0.00032651,2]
[356742315,1743083439628,-5778.16,0.00032651,2]
[356742316,1743083439637,-5778.16,0.00032651,2]
[356742317,1743083439647,-5778.16,0.00032651,2]
[356742318,1743083439656,-5778.16,0.00032651,2]
[356742319,1743083439665,-5778.16,0.00032651,2]
[356742320,1743083439674,-500.0,0.00032876,2]
[356742321,1743083439683,-1087.94,0.00032876,2]
[356742322,1743083439693,-2000.0,0.00032876,2]
[356742323,1743083439702,-151.0,0.00032877,7]
[356742324,1743083439712,-151.0,0.00032877,7]
[356742325,1743083439722,-162.270069,0.00032877,7]
[356742326,1743083439731,-450.0,0.00033,2]
[356742327,1743083439741,-500.0,0.0003315,2]
[356742328,1743083439750,-1087.94,0.0003315,2]
[356742329,1743083439760,-2000.0,0.0003315,2]
[356742330,1743083439771,-15187.36219878,0.000334,2]
[356742331,1743083439781,-251.94401131,0.000334,2]
[356742332,1743083439790,-500.0,0.00033424,2]
[356742333,1743083439799,-1087.94,0.00033424,2]
[356742334,1743083439810,-2000.0,0.00033424,2]
[356742335,1743083439835,-12519.54,0.000336,2]
[356742336,1743083439846,-293.99,0.00033669,120]
[356742337,1743083439856,-524.94241081,0.00033698,2]
[356742338,1743083439865,-1087.94,0.00033698,2]
[356742339,1743083439875,-2000.0,0.00033698,2]
[356742340,1743083439885,-1087.94,0.00033972,2]
[356742341,1743083439894,-2000.0,0.00033972,2]
[356742342,1743083439904,-1087.94,0.00034246,2]
[356742343,1743083439913,-2000.0,0.00034246,2]
[356742344,1743083439922,-343.06,0.000343,7]
[356742345,1743083439932,-151.0,0.00034377,2]
[356742346,1743083439942,-1087.94,0.0003452,2]
[356742347,1743083439952,-2000.0,0.0003452,2]
[356742348,1743083439964,-1015.22,0.0003474,2]
[356742349,1743083439974,-1087.94,0.00034794,2]
[356742350,1743083439983,-553.61779565,0.00034794,2]
[356742351,1743083439993,-500.0,0.00035,2]
[356742352,1743083440002,-1087.94,0.00035068,2]
[356742353,1743083440012,-295.48,0.00035068,2]
[356742354,1743083440022,-150.39,0.00035321,2]
[356742355,1743083440033,-1087.94,0.00035342,2]
[356742356,1743083440046,-1087.94,0.00035616,2]
[356742357,1743083440056,-150.0,0.00035616,2]
[356742358,1743083440066,-22863.0,0.00035649,2]
[356742359,1743083440075,-1087.94,0.0003589,2]
[356742360,1743083440084,-1087.94,0.00036164,2]
[356742361,1743083440094,-153.34,0.000362,31]
[356742362,1743083440103,-153.34,0.000362,31]
[356742363,1743083440114,-153.34,0.000362,31]
[356742364,1743083440123,-153.34,0.000362,31]
[356742365,1743083440133,-153.34,0.000362,31]
[356742366,1743083440142,-153.34,0.000362,31]
[356742367,1743083440152,-153.34,0.000362,31]
[356742368,1743083440161,-153.34,0.000362,31]
[356742369,1743083440171,-1422.3,0.000364,2]
[356742370,1743083440180,-1088.05549443,0.00036438,2]
[356742372,1743083440190,-150.0,0.00036554,2]
[356742374,1743083440199,-152.0,0.00036676,3]
[356742375,1743083440210,-258.31164833,0.00036863,2]
[356742376,1743083440221,-550.0,0.00037,2]
[356742377,1743083440232,-1015.22,0.00037003,2]
[356742378,1743083440241,-1012.0,0.000373,7]
[356742379,1743083440251,-12519.54,0.000374,2]
[356742380,1743083440260,-150.0,0.00037491,2]
[356742381,1743083440269,-293.99,0.00038147,120]
[356742382,1743083440278,-2663.0297509,0.00038356,4]
[356742383,1743083440287,-150.0,0.00038428,2]
[356742384,1743083440296,-570.74,0.00038443,2]
[356742385,1743083440305,-1000.0,0.000386,7]
[356742386,1743083440314,-2808.9388,0.00038888,30]
[356742387,1743083440323,-8500.0,0.00038912,11]
[356742388,1743083440332,-8500.0,0.00038919,11]
[356742389,1743083440341,-8500.0,0.00038921,11]
[356742390,1743083440350,-8500.0,0.0003893,11]
[356742391,1743083440360,-5449.12036524,0.0003893,11]
[356742392,1743083440369,-8500.0,0.00038995,11]
[356742393,1743083440378,-153.34,0.00039,31]
[356742394,1743083440388,-153.34,0.00039,31]
[356742395,1743083440397,-153.34,0.00039,31]
[356742396,1743083440406,-153.34,0.00039,31]
[356742397,1743083440415,-153.34,0.00039,31]
[356742398,1743083440424,-153.34,0.00039,31]
[356742399,1743083440433,-153.34,0.00039,31]
[356742400,1743083440442,-153.34,0.00039,31]
[356742401,1743083440451,-153.34,0.00039,31]
[356742402,1743083440463,-153.34,0.00039,31]
[356742403,1743083440472,-153.34,0.00039,31]
[356742404,1743083440481,-153.34,0.00039,31]
[356742405,1743083440490,-153.34,0.00039,31]
[356742406,1743083440499,-153.34,0.00039,31]
[356742407,1743083440508,-153.34,0.00039,31]
[356742408,1743083440518,-153.34,0.00039,31]
[356742409,1743083440528,-600.0,0.00039,2]
[356742410,1743083440538,-8500.0,0.00039004,11]
[356742411,1743083440547,-8500.0,0.00039013,11]
[356742412,1743083440556,-8500.0,0.00039022,11]
[356742413,1743083440566,-8500.0,0.00039031,11]
[356742414,1743083440575,-151.0,0.00039039,14]
[356742415,1743083440586,-159.275943,0.00039039,14]
[356742416,1743083440596,-151.0,0.00039039,14]
[356742417,1743083440606,-8500.0,0.00039039,11]
[356742418,1743083440615,-151.0,0.00039048,14]
[356742419,1743083440625,-1015.22,0.00039267,2]
[356742420,1743083440634,-150.0,0.00039366,2]
[356742421,1743083440644,-152.0,0.00039699,4]
[356742422,1743083440653,-500.0,0.00039726,15]
[356742423,1743083440662,-342.72551972,0.00039726,15]
[356742424,1743083440672,-1381.2736791,0.00039963,4]
[356742425,1743083440681,-505.53011808,0.0004,120]
[356742426,1743083440691,-161.93,0.0004,120]
[356742427,1743083440700,-666.93,0.0004,120]
[356742428,1743083440710,-12519.54,0.000402,2]
[356742429,1743083440720,-500.0,0.000402,7]
[356742430,1743083440730,-382.26,0.000402,7]
[356742431,1743083440739,-500.0,0.000402,7]
[356742432,1743083440749,-500.0,0.000402,7]
[356742433,1743083440759,-507.21,0.000402,7]
[356742434,1743083440769,-348.57,0.000402,7]
[356742435,1743083440778,-151.0,0.000402,14]
[356742436,1743083440788,-151.0,0.000402,14]
[356742437,1743083440798,-151.0,0.000402,14]
[356742438,1743083440807,-500.0,0.000402,7]
[356742439,1743083440817,-500.0,0.000402,7]
[356742440,1743083440830,-500.0,0.000402,7]
[356742441,1743083440840,-500.0,0.000402,7]
[356742442,1743083440849,-500.0,0.000402,7]
[356742443,1743083440859,-500.0,0.000402,7]
[356742444,1743083440870,-500.0,0.000402,7]
[356742445,1743083440879,-500.0,0.000402,7]
[356742446,1743083440888,-500.0,0.000402,7]